fUST/lending_fUST_20250307
["ID","MTS","AMOUNT","RATE_DAILY","PERIOD"]
[355567170,1741302636660,-964.65,0.00032876,9]
[355567171,1741302636670,-964.65,0.00032876,9]
[355567172,1741302636679,-964.65,0.00032876,9]
[355567173,1741302636688,-964.65,0.00032876,9]
[355567174,1741302636698,-1081.22,0.00032876,9]
[355567175,1741302636707,-964.65,0.00032876,9]
[355567176,1741302636717,-964.65,0.00032876,9]
[355567177,1741302636726,-964.65,0.00032876,9]
[355567178,1741302636737,-964.65,0.00032876,9]
[355567179,1741302636747,-964.65,0.00032876,9]
[355567180,1741302636756,-383.65011932,0.00032876,9]
[355567181,1741302636766,-964.65,0.00032876,9]
[355567182,1741302636776,-964.68346319,0.00032876,9]
[355567183,1741302636786,-1954.15,0.00032876,9]
[355567184,1741302636795,-500.0,0.00032876,9]
[355567185,1741302636804,-500.0,0.00032876,9]
[355567186,1741302636814,-500.0,0.00032876,9]
[355567187,1741302636824,-1660.54,0.00032876,9]
[355567188,1741302636833,-500.0,0.00032876,9]
[355567189,1741302636843,-512.73,0.00032876,9]
[355567190,1741302636852,-1027.72,0.00032876,9]
[355567191,1741302636861,-1696.49,0.00032876,9]
[355567192,1741302636871,-500.0,0.00032876,9]
[355567193,1741302636880,-500.0,0.00032876,9]
[355567194,1741302636889,-829.66,0.00032876,9]
[355567195,1741302636898,-4063.95,0.00032876,9]
[355567196,1741302636907,-1364.78,0.00032876,9]
[355567197,1741302636918,-963.51,0.00032876,9]
[355567198,1741302636931,-2615.95,0.00032876,9]
[355567199,1741302636940,-815.36,0.00032876,9]
[355567200,1741302636949,-500.0,0.00032876,9]
[355567201,1741302636959,-8583.25,0.00032876,9]
[355567202,1741302636971,-500.0,0.00032876,9]
[355567203,1741302636980,-500.0,0.00032876,9]
[355567204,1741302636990,-500.0,0.00032876,9]
[355567205,1741302637001,-500.0,0.00032876,9]
[355567206,1741302637011,-4483.62,0.00032876,9]
[355567207,1741302637021,-719.6,0.00032876,9]
[355567208,1741302637030,-503.38,0.00032876,9]
[355567209,1741302637040,-500.0,0.00032876,9]
[355567210,1741302637049,-500.0,0.00032876,9]
[355567211,1741302637059,-7052.89,0.00032876,9]
[355567212,1741302637068,-871.58,0.00032876,9]
[355567213,1741302637078,-500.0,0.00032876,9]
[355567214,1741302637088,-500.0,0.00032876,9]
[355567215,1741302637098,-798.79,0.00032876,9]
[355567216,1741302637108,-5665.04,0.00032876,9]
[355567217,1741302637116,-572.46,0.00032876,9]
[355567218,1741302637125,-619.42,0.00032876,9]
[355567219,1741302637135,-2601.19,0.00032876,9]
[355567220,1741302637146,-500.0,0.00032876,9]
[355567221,1741302637155,-500.0,0.00032876,9]
[355567222,1741302637166,-524.0289099,0.00032876,9]
[355567223,1741302637175,-500.0,0.00032876,9]
[355567224,1741302637185,-500.0,0.00032876,9]
[355567225,1741302637194,-500.0,0.00032876,9]
[355567226,1741302637204,-706.85,0.00032876,9]
[355567227,1741302637213,-1156.08,0.00032876,9]
[355567228,1741302637223,-2606.96,0.00032876,9]
[355567229,1741302637232,-985.58,0.00032876,9]
[355567230,1741302637241,-1000.0,0.00032876,7]
[355567231,1741302637251,-1416.54,0.00032876,9]
[355567232,1741302637260,-500.0,0.00032876,9]
[355567233,1741302637269,-1672.84,0.00032876,9]
[355567234,1741302637279,-799.59,0.00032876,9]
[355567235,1741302637289,-500.0,0.00032876,9]
[355567236,1741302637298,-1388.92,0.00032876,9]
[355567237,1741302637308,-500.0,0.00032876,9]
[355567238,1741302637317,-500.0,0.00032876,9]
[355567239,1741302637327,-1131.42,0.00032876,9]
[355567240,1741302637337,-500.0,0.00032876,9]
[355567241,1741302637346,-500.0,0.00032876,9]
[355567242,1741302637356,-1320.76,0.00032876,9]
[355567243,1741302637365,-1006.49,0.00032876,9]
[355567244,1741302637374,-500.0,0.00032876,9]
[355567245,1741302637383,-1353.82,0.00032876,9]
[355567246,1741302637393,-517.12887266,0.00032876,9]
[355567247,1741302637402,-7284.49166523,0.00032876,9]
[355567248,1741302637464,-500.0,0.00032854,2]
[355567249,1741302637474,-500.0,0.00032854,2]
[355567250,1741302637484,-322.49,0.00032854,2]
[355567294,1741302640574,-394.56350992,0.00032766,2]
[355567296,1741302640584,-67.77002206,0.00032771,2]
[355567303,1741302640636,-326.79348786,0.00032771,2]
[355567305,1741302640646,-394.56350992,0.00032776,2]
[355567307,1741302640656,-1407.55516476,0.00032807,2]
[355567309,1741302640666,-177.51,0.00032854,2]
[355567310,1741302640675,-500.0,0.00032854,2]
[355567313,1741302640685,-511.42291526,0.00032854,2]
[355567315,1741302640695,-500.0,0.00032854,2]
[355567317,1741302640704,-500.0,0.00032854,2]
[355567319,1741302640713,-500.0,0.00032854,2]
[355567321,1741302640723,-500.0,0.00032854,2]
[355567323,1741302640732,-511.42291526,0.00032854,2]
[355567324,1741302640742,-500.0,0.00032854,2]
[355567327,1741302640751,-187.95765207,0.00032854,2]
[355567329,1741302640760,-500.0,0.00032854,2]
[355567331,1741302640770,-300.0,0.00032854,2]
[355567333,1741302640780,-511.42291526,0.00032854,2]
[355567335,1741302640790,-310.32161252,0.00032854,2]
[355567337,1741302640799,-500.0,0.00032854,2]
[355567339,1741302640809,-500.0,0.00032854,2]
[355567341,1741302640818,-511.42291526,0.00032854,2]
[355567343,1741302640828,-500.0,0.00032854,2]
[355567345,1741302640837,-500.0,0.00032854,2]
[355567347,1741302640846,-500.0,0.00032854,2]
[355567349,1741302640855,-511.42291526,0.00032854,2]
[355567351,1741302640864,-500.0,0.00032854,2]
[355567353,1741302640874,-511.42291526,0.00032854,2]
[355567355,1741302640883,-500.0,0.00032854,2]
[355567357,1741302640892,-500.0,0.00032854,2]
[355567359,1741302640903,-511.42291526,0.00032854,2]
[355567361,1741302640912,-500.0,0.00032854,2]
[355567363,1741302640923,-500.0,0.00032854,2]
[355567365,1741302640935,-511.42291526,0.00032854,2]
[355567367,1741302640945,-500.0,0.00032854,2]
[355567369,1741302640955,-500.0,0.00032854,2]
[355567371,1741302640964,-500.0,0.00032854,2]
[355567373,1741302640975,-500.0,0.00032854,2]
[355567375,1741302640984,-511.42291526,0.00032854,2]
[355567377,1741302640993,-500.0,0.00032854,2]
[355567379,1741302641004,-500.0,0.00032854,2]
[355567381,1741302641013,-511.42291526,0.00032854,2]
[355567383,1741302641023,-500.0,0.00032854,2]
[355567385,1741302641032,-511.42291526,0.00032854,2]
[355567387,1741302641042,-500.0,0.00032854,2]
[355567389,1741302641051,-511.42291526,0.00032854,2]
[355567391,1741302641061,-500.0,0.00032854,2]
[355567393,1741302641070,-511.42291526,0.00032854,2]
[355567395,1741302641080,-500.0,0.00032854,2]
[355567397,1741302641089,-511.42291526,0.00032854,2]
[355567399,1741302641099,-500.0,0.00032854,2]
[355567401,1741302641108,-511.42291526,0.00032854,2]
[355567403,1741302641117,-500.0,0.00032854,2]
[355567405,1741302641127,-500.0,0.00032854,2]
[355567407,1741302641136,-511.42291526,0.00032854,2]
[355567409,1741302641145,-500.0,0.00032854,2]
[355567411,1741302641155,-511.42291526,0.00032854,2]
[355567413,1741302641164,-500.0,0.00032854,2]
[355567415,1741302641174,-511.42291526,0.00032854,2]
[355567417,1741302641183,-500.0,0.00032854,2]
[355567419,1741302641192,-511.42291526,0.00032854,2]
[355567421,1741302641202,-500.0,0.00032854,2]
[355567423,1741302641213,-511.42291526,0.00032854,2]
[355567425,1741302641222,-500.0,0.00032854,2]
[355567427,1741302641232,-511.42291526,0.00032854,2]
[355567429,1741302641241,-289.61619109,0.00032854,2]
[355567431,1741302641251,-511.42291526,0.00032854,2]
[355567433,1741302641260,-511.42291526,0.00032854,2]
[355567435,1741302641270,-511.42291526,0.00032854,2]
[355567437,1741302641279,-511.42291526,0.00032854,2]
[355567439,1741302641288,-511.42291526,0.00032854,2]
[355567441,1741302641298,-511.42291526,0.00032854,2]
[355567443,1741302641308,-511.42291526,0.00032854,2]
[355567445,1741302641317,-511.42291526,0.00032854,2]
[355567447,1741302641327,-511.42291526,0.00032854,2]
[355567449,1741302641336,-511.42291526,0.00032854,2]
[355567451,1741302641346,-511.42291526,0.00032854,2]
[355567453,1741302641355,-511.42291526,0.00032854,2]
[355567455,1741302641366,-511.42291526,0.00032854,2]
[355567457,1741302641375,-511.42291526,0.00032854,2]
[355567459,1741302641386,-511.42291526,0.00032854,2]
[355567461,1741302641395,-511.42291526,0.00032854,2]
[355567463,1741302641406,-511.42291526,0.00032854,2]
[355567465,1741302641415,-511.42291526,0.00032854,2]
[355567467,1741302641424,-511.42291526,0.00032854,2]
[355567469,1741302641433,-511.42291526,0.00032854,2]
[355567471,1741302641443,-511.42291526,0.00032854,2]
[355567473,1741302641452,-894.97833477,0.00032876,9]
[355567475,1741302641461,-500.0,0.00032876,9]
[355567477,1741302641471,-2256.67,0.00032876,9]
[355567479,1741302641480,-500.0,0.00032876,9]
[355567481,1741302641489,-500.0,0.00032876,9]
[355567483,1741302641499,-500.0,0.00032876,9]
[355567485,1741302641508,-546.55,0.00032876,9]
[355567487,1741302641517,-500.0,0.00032876,9]
[355567489,1741302641527,-2818.11,0.00032876,9]
[355567491,1741302641536,-743.51,0.00032876,9]
[355567493,1741302641546,-1963.48,0.00032876,9]
[355567495,1741302641556,-500.0,0.00032876,9]
[355567497,1741302641565,-4152.03,0.00032876,9]
[355567499,1741302641574,-1372.97,0.00032876,9]
[355567501,1741302641584,-1009.9,0.00032876,9]
[355567503,1741302641593,-3199.63,0.00032876,9]
[355567505,1741302641603,-678.78,0.00032876,9]
[355567507,1741302641612,-642.03,0.00032876,9]
[355567509,1741302641622,-9737.95,0.00032876,9]
[355567511,1741302641631,-500.0,0.00032876,9]
[355567513,1741302641641,-500.0,0.00032876,9]
[355567515,1741302641650,-500.0,0.00032876,2]
[355567517,1741302641659,-3350.56,0.00032876,9]
[355567519,1741302641669,-1081.05,0.00032876,9]
[355567521,1741302641678,-6451.26,0.00032876,9]
[355567523,1741302641687,-1063.24,0.00032876,9]
[355567525,1741302641697,-6664.83,0.00032876,9]
[355567527,1741302641707,-500.0,0.00032876,2]
[355567529,1741302641716,-9999.0,0.00032876,2]
[355567531,1741302641726,-151.0,0.000331,10]
[355567533,1741302641735,-151.0,0.000331,13]
[355567536,1741302641745,-541.09043868,0.0003314,2]
[355567538,1741302641754,-11229.2039465,0.0003314,2]
[355567539,1741302641764,-500.0,0.0003315,9]
[355567542,1741302641773,-500.0,0.0003315,2]
[355567543,1741302641783,-1028.26,0.0003315,9]
[355567545,1741302641793,-1374.21,0.0003315,9]
[355567547,1741302641804,-801.83,0.0003315,9]
[355567549,1741302641813,-737.6,0.0003315,9]
[355567551,1741302641823,-500.0,0.0003315,9]
[355567553,1741302641833,-500.0,0.0003315,9]
[355567556,1741302641842,-500.0,0.0003315,9]
[355567558,1741302641852,-500.0,0.0003315,9]
[355567559,1741302641861,-500.0,0.0003315,9]
[355567561,1741302641871,-500.0,0.0003315,9]
[355567564,1741302641880,-500.0,0.0003315,9]
[355567566,1741302641890,-500.0,0.0003315,9]
[355567568,1741302641899,-500.0,0.0003315,9]
[355567570,1741302641908,-500.0,0.0003315,9]
[355567572,1741302641918,-1055.06,0.0003315,9]
[355567574,1741302641932,-892.1,0.0003315,9]
[355567576,1741302641941,-500.0,0.0003315,9]
[355567578,1741302641951,-500.0,0.0003315,9]
[355567580,1741302641961,-500.0,0.0003315,9]
[355567582,1741302641971,-932.07,0.0003315,9]
[355567584,1741302641980,-500.0,0.0003315,9]
[355567586,1741302641990,-500.0,0.0003315,9]
[355567588,1741302641999,-917.01,0.0003315,9]
[355567590,1741302642009,-500.0,0.0003315,9]
[355567592,1741302642019,-500.0,0.0003315,9]
[355567594,1741302642029,-512.76131652,0.0003315,9]
[355567596,1741302642038,-500.0,0.0003315,9]
[355567598,1741302642048,-500.0,0.0003315,9]
[355567600,1741302642058,-500.0,0.0003315,9]
[355567602,1741302642067,-366.63859321,0.0003315,9]
[355567603,1741302642076,-500.0,0.0003315,9]
[355567605,1741302642085,-986.66,0.0003315,5]
[355567607,1741302642095,-500.0,0.0003315,9]
[355567609,1741302642104,-928.25,0.0003315,9]
[355567611,1741302642114,-500.0,0.0003315,9]
[355567613,1741302642123,-1797.85,0.0003315,9]
[355567615,1741302642133,-791.71,0.0003315,9]
[355567617,1741302642142,-938.73,0.0003315,9]
[355567619,1741302642152,-722.83,0.0003315,9]
[355567621,1741302642161,-531.970745,0.0003315,9]
[355567623,1741302642171,-974.8,0.0003315,9]
[355567625,1741302642180,-500.0,0.0003315,9]
[355567627,1741302642190,-500.0,0.0003315,9]
[355567629,1741302642200,-614.05,0.0003315,9]
[355567631,1741302642209,-500.0,0.0003315,9]
[355567638,1741302642219,-613.12,0.0003315,9]
[355567640,1741302642274,-500.0,0.0003315,9]
[355567642,1741302642283,-710.9,0.0003315,9]
[355567644,1741302642293,-500.0,0.0003315,9]
[355567646,1741302642302,-500.0,0.0003315,9]
[355567648,1741302642312,-500.0,0.0003315,9]
[355567650,1741302642321,-500.0,0.0003315,9]
[355567652,1741302642330,-654.62,0.0003315,9]
[355567654,1741302642339,-500.0,0.0003315,9]
[355567656,1741302642349,-530.40158502,0.0003315,9]
[355567658,1741302642358,-974.2,0.0003315,9]
[355567660,1741302642368,-500.0,0.0003315,9]
[355567662,1741302642377,-500.0,0.0003315,9]
[355567664,1741302642386,-500.0,0.0003315,9]
[355567666,1741302642397,-500.0,0.0003315,9]
[355567668,1741302642406,-500.0,0.0003315,9]
[355567670,1741302642416,-1337.86,0.0003315,9]
[355567672,1741302642425,-775.43,0.0003315,9]
[355567674,1741302642434,-500.0,0.0003315,9]
[355567676,1741302642444,-1912.14,0.0003315,9]
[355567678,1741302642454,-930.81,0.0003315,9]
[355567680,1741302642464,-500.0,0.0003315,9]
[355567682,1741302642473,-1188.68,0.0003315,9]
[355567684,1741302642483,-781.88,0.0003315,9]
[355567686,1741302642493,-349.24349787,0.0003315,9]
[355567688,1741302642504,-500.0,0.0003315,9]
[355567690,1741302642514,-514.85,0.0003315,9]
[355567692,1741302642523,-500.0,0.0003315,9]
[355567694,1741302642533,-500.0,0.0003315,9]
[355567696,1741302642543,-1363.76,0.0003315,9]
[355567698,1741302642551,-536.74,0.0003315,9]
[355567700,1741302642561,-500.0,0.0003315,9]
[355567702,1741302642570,-500.0,0.0003315,9]
[355567704,1741302642579,-500.0,0.0003315,9]
[355567706,1741302642588,-637.81,0.0003315,9]
[355567707,1741302642597,-948.29,0.0003315,9]
[355567709,1741302642606,-500.0,0.0003315,9]
[355567711,1741302642615,-500.0,0.0003315,9]
[355567713,1741302642625,-500.0,0.0003315,9]
[355567715,1741302642634,-500.0,0.0003315,9]
[355567717,1741302642643,-500.0,0.0003315,9]
[355567719,1741302642652,-500.0,0.0003315,9]
[355567721,1741302642662,-546.7,0.0003315,9]
[355567723,1741302642671,-1884.11,0.0003315,9]
[355567725,1741302642681,-500.0,0.0003315,9]
[355567727,1741302642690,-500.0,0.0003315,9]
[355567729,1741302642699,-2211.63,0.0003315,9]
[355567731,1741302642709,-1515.06,0.0003315,9]
[355567733,1741302642718,-2033.02,0.0003315,9]
[355567735,1741302642727,-500.89,0.0003315,9]
[355567737,1741302642736,-500.0,0.0003315,9]
[355567739,1741302642745,-2228.99,0.0003315,9]
[355567741,1741302642755,-500.0,0.0003315,9]
[355567743,1741302642764,-500.0,0.0003315,9]
[355567745,1741302642773,-1126.24,0.0003315,9]
[355567747,1741302642783,-1760.11,0.0003315,9]
[355567749,1741302642792,-1048.84,0.0003315,9]
[355567751,1741302642802,-500.0,0.0003315,9]
[355567753,1741302642811,-1002.38,0.0003315,9]
[355567755,1741302642821,-500.0,0.0003315,9]
[355567757,1741302642830,-798.05,0.0003315,9]
[355567759,1741302642839,-1826.84,0.0003315,9]
[355567761,1741302642848,-500.0,0.0003315,9]
[355567763,1741302642858,-500.0,0.0003315,9]
[355567765,1741302642867,-1622.76,0.0003315,9]
[355567767,1741302642876,-575.747745,0.0003315,9]
[355567769,1741302642885,-500.0,0.0003315,9]
[355567771,1741302642895,-636.89,0.0003315,9]
[355567773,1741302642904,-500.0,0.0003315,9]
[355567775,1741302642914,-500.0,0.0003315,9]
[355567777,1741302642924,-1221.08,0.0003315,9]
[355567779,1741302642936,-500.0,0.0003315,9]
[355567781,1741302642946,-916.8,0.0003315,9]
[355567783,1741302642955,-500.0,0.0003315,9]
[355567785,1741302642964,-500.0,0.0003315,9]
[355567787,1741302642975,-1177.63,0.0003315,9]
[355567789,1741302642983,-2246.84,0.0003315,9]
[355567791,1741302642992,-1514.15,0.0003315,9]
[355567793,1741302643002,-920.26,0.0003315,9]
[355567794,1741302643011,-636.95,0.0003315,9]
[355567796,1741302643020,-500.0,0.0003315,9]
[355567798,1741302643030,-500.0,0.0003315,9]
[355567800,1741302643039,-261.09925806,0.0003315,9]
[355567802,1741302643048,-474.66703743,0.0003315,9]
[355567804,1741302643058,-2139.13,0.0003315,9]
[355567806,1741302643067,-569.5,0.0003315,9]
[355567809,1741302643077,-500.0,0.0003315,9]
[355567810,1741302643086,-502.20490292,0.0003315,9]
[355567813,1741302643097,-500.0,0.0003315,9]
[355567814,1741302643106,-645.03,0.0003315,9]
[355567816,1741302643115,-514.2,0.0003315,9]
[355567818,1741302643131,-551.81,0.0003315,9]
[355567821,1741302643140,-1003.33,0.0003315,9]
[355567824,1741302643150,-500.0,0.0003315,9]
[355567827,1741302643159,-500.0,0.0003315,9]
[355567830,1741302643169,-639.81,0.0003315,9]
[355567833,1741302643179,-1972.71,0.0003315,9]
[355567835,1741302643189,-4387.72,0.0003315,9]
[355567837,1741302643198,-767.57,0.0003315,9]
[355567839,1741302643207,-893.06,0.0003315,9]
[355567841,1741302643217,-714.27,0.0003315,9]
[355567844,1741302643226,-1832.74,0.0003315,9]
[355567846,1741302643236,-500.0,0.0003315,9]
[355567848,1741302643245,-500.0,0.0003315,9]
[355567849,1741302643254,-500.0,0.0003315,9]
[355567852,1741302643264,-500.0,0.0003315,9]
[355567854,1741302643273,-720.92,0.0003315,9]
[355567856,1741302643283,-521.48,0.0003315,9]
[355567858,1741302643293,-500.0,0.0003315,9]
[355567860,1741302643301,-740.3,0.0003315,9]
[355567862,1741302643311,-3082.57,0.0003315,9]
[355567864,1741302643320,-500.0,0.0003315,9]
[355567866,1741302643329,-500.0,0.0003315,9]
[355567868,1741302643338,-500.0,0.0003315,9]
[355567870,1741302643347,-667.59,0.0003315,9]
[355567872,1741302643356,-1164.14,0.0003315,9]
[355567874,1741302643365,-500.0,0.0003315,9]
[355567876,1741302643375,-2713.41,0.0003315,9]
[355567878,1741302643384,-180499.56,0.0003315,7]
[355567880,1741302643393,-500.0,0.0003315,9]
[355567882,1741302643403,-1591.12,0.0003315,9]
[355567884,1741302643412,-1561.63,0.0003315,9]
[355567886,1741302643421,-509.81,0.0003315,9]
[355567888,1741302643430,-644.04,0.0003315,9]
[355567890,1741302643440,-3063.64,0.0003315,9]
[355567892,1741302643449,-2081.39,0.0003315,9]
[355567894,1741302643458,-652.71,0.0003315,9]
[355567896,1741302643467,-500.0,0.0003315,9]
[355567898,1741302643477,-1276.71,0.0003315,9]
[355567900,1741302643486,-2884.48,0.0003315,9]
[355567902,1741302643495,-500.0,0.0003315,9]
[355567904,1741302643504,-3137.27,0.0003315,9]
[355567906,1741302643513,-4031.88,0.0003315,9]
[355567907,1741302643522,-2662.52,0.0003315,9]
[355567909,1741302643533,-500.0,0.0003315,9]
[355567911,1741302643542,-500.0,0.0003315,9]
[355567913,1741302643551,-149.99862144,0.0003315,9]
[355567915,1741302643588,-350.00137856,0.0003315,9]
[355567916,1741302643597,-2083.58135606,0.0003315,9]
[355567917,1741302643857,-21.6582868,0.00032854,2]
[355567918,1741302643881,-478.3417132,0.00032854,2]
[355567919,1741302643891,-500.0,0.00032854,2]
[355567920,1741302643900,-500.0,0.00032854,2]
[355567921,1741302643910,-500.0,0.00032854,2]
[355567922,1741302643920,-500.0,0.00032854,2]
[355567923,1741302643932,-33.57458142,0.00032854,2]
[355568014,1741302646570,-466.42541858,0.00032854,2]
[355568016,1741302646580,-500.0,0.00032854,2]
[355568018,1741302646590,-500.0,0.00032854,2]
[355568020,1741302646599,-45.26206764,0.00032854,2]
[355568207,1741303832758,-293.32752373,0.00018922,2]
[355568209,1741303832768,-413.64727971,0.000192,2]
[355568211,1741303832777,-413.64727971,0.000192,2]
[355568213,1741303832787,-413.64727971,0.000192,2]
[355568214,1741303832797,-413.64727971,0.000192,2]
[355568215,1741303832806,-706.41285824,0.00022,2]
[355568217,1741303832816,-205.10863026,0.00025,2]
[355568219,1741303832825,-834.93465495,0.00025,2]
[355568221,1741303832835,-300.0,0.00025999,2]
[355568223,1741303832845,-14636.96218601,0.00026,10]
[355568287,1741303838452,-1521.36559119,0.00026,10]
[355568288,1741303838515,-21947.58547868,0.00026,10]
[355568290,1741303838525,-368.03666666,0.00026,10]
[355568292,1741303838534,-2088.90332035,0.00026748,2]
[355568293,1741303838543,-8932.67767896,0.000269,4]
[355568294,1741303838554,-2112.08957748,0.00027,2]
[355568295,1741303838563,-320.0,0.00028137,2]
[355568296,1741303838572,-2088.90332028,0.0002837,2]
[355568297,1741303838582,-206.1386749,0.00028641,2]
[355568298,1741303838591,-266.0895568,0.000297,2]
[355568299,1741303838599,-2088.90332028,0.00029991,2]
[355568300,1741303838608,-824.46981294,0.0003,10]
[355569860,1741305033014,-500.0,0.000192,2]
[355569863,1741305033024,-600.0,0.000192,2]
[355569864,1741305033033,-500.0,0.000192,2]
[355569866,1741305033043,-500.0,0.000192,2]
[355569868,1741305033053,-1382.63514871,0.000249,2]
[355569870,1741305033062,-290.0,0.00025,120]
[355569872,1741305033072,-200.0,0.00025866,2]
[355569875,1741305033082,-24900.0,0.00027122,2]
[355569877,1741305033092,-351.0596,0.00027194,2]
[355569879,1741305033102,-202.0415469,0.00027962,2]
[355569881,1741305033112,-3302.090607,0.00028806,2]
[355569883,1741305033121,-151.0,0.00029,120]
[355569885,1741305033130,-5327.29119474,0.000299,2]
[355569887,1741305033140,-158.561,0.000299,24]
[355569889,1741305033149,-1382.63514871,0.000299,2]
[355569891,1741305033158,-7206.7444812,0.0003,10]
[355569893,1741305033168,-4359.14547766,0.0003,120]
[355569895,1741305033178,-201.0,0.0003,2]
[355569897,1741305033187,-465.04084661,0.00031185,2]
[355569899,1741305033197,-3976.91606613,0.00032183,2]
[355569901,1741305033206,-160.0,0.00032183,2]
[355569903,1741305033216,-416.66666667,0.00032229,2]
[355569905,1741305033226,-160.0,0.00032229,2]
[355569907,1741305033236,-2973.00575135,0.00032265,2]
[355569909,1741305033245,-168.06,0.00032355,3]
[355569911,1741305033255,-2973.00575134,0.00032361,2]
[355569913,1741305033266,-500.0,0.00032365,2]
[355569915,1741305033276,-500.0,0.00032365,2]
[355569917,1741305033286,-500.0,0.00032365,2]
[355569919,1741305033295,-500.0,0.00032365,2]
[355569920,1741305033305,-201.14684584,0.00032365,2]
[355569921,1741305033315,-500.0,0.00032365,2]
[355569922,1741305033326,-500.0,0.00032365,2]
[355569923,1741305033336,-500.0,0.00032365,2]
[355569924,1741305033346,-500.0,0.00032365,2]
[355569925,1741305033356,-500.0,0.00032365,2]
[355569926,1741305033365,-500.0,0.00032365,2]
[355569927,1741305033375,-500.0,0.00032365,2]
[355569928,1741305033385,-500.0,0.00032365,2]
[355569930,1741305033395,-500.0,0.00032365,2]
[355569931,1741305033404,-500.0,0.00032365,2]
[355569932,1741305033414,-350.0,0.00032365,2]
[355569933,1741305033424,-500.0,0.00032365,2]
[355569935,1741305033434,-500.0,0.00032365,2]
[355569936,1741305033443,-500.0,0.00032365,2]
[355569937,1741305033452,-500.0,0.00032365,2]
[355569938,1741305033462,-500.0,0.00032365,2]
[355569939,1741305033472,-500.0,0.00032365,2]
[355569940,1741305033481,-500.0,0.00032365,2]
[355569941,1741305033491,-500.0,0.00032365,2]
[355569942,1741305033502,-500.0,0.00032365,2]
[355569943,1741305033512,-500.0,0.00032365,2]
[355569944,1741305033522,-500.0,0.00032365,2]
[355569945,1741305033531,-500.0,0.00032365,2]
[355569946,1741305033541,-500.0,0.00032365,2]
[355569947,1741305033551,-500.0,0.00032365,2]
[355569948,1741305033561,-311.52624036,0.00032365,2]
[355569949,1741305033570,-500.0,0.00032365,2]
[355569950,1741305033580,-500.0,0.00032365,2]
[355569951,1741305033590,-500.0,0.00032365,2]
[355569952,1741305033600,-500.0,0.00032365,2]
[355569953,1741305033609,-500.0,0.00032365,2]
[355569954,1741305033620,-500.0,0.00032365,2]
[355569955,1741305033630,-500.0,0.00032365,2]
[355569956,1741305033640,-500.0,0.00032365,2]
[355569957,1741305033649,-500.0,0.00032365,2]
[355569958,1741305033662,-500.0,0.00032365,2]
[355569959,1741305033673,-500.0,0.00032365,2]
[355569960,1741305033684,-612.70172641,0.00032365,2]
[355569961,1741305033694,-500.0,0.00032365,2]
[355569962,1741305033706,-500.0,0.00032365,2]
[355569963,1741305033716,-500.0,0.00032365,2]
[355569964,1741305033726,-500.0,0.00032365,2]
[355569965,1741305033736,-500.0,0.00032365,2]
[355569966,1741305033747,-500.0,0.00032365,2]
[355569967,1741305033757,-500.0,0.00032365,2]
[355569968,1741305033768,-500.0,0.00032365,2]
[355569969,1741305033779,-500.0,0.00032365,2]
[355569970,1741305033789,-500.0,0.00032365,2]
[355569971,1741305033799,-500.0,0.00032365,2]